bitfinex-derivatives/quotes_BTCF0:USTF0_20250216
["timestamp","ask_amount","ask_price","bid_price","bid_amount"]
[1739669785204,0.04553663,97614.0,97613.0,0.2662924]
[1739669786213,0.04453663,97614.0,97613.0,0.2662924]
[1739669788007,0.04353663,97614.0,97613.0,0.2662924]
[1739669789012,0.04453663,97614.0,97613.0,0.2662924]
[1739669790307,0.04353663,97614.0,97613.0,0.2662924]
[1739669790509,0.04453663,97614.0,97613.0,0.2662924]
[1739669791613,0.04353663,97614.0,97613.0,0.2662924]
[1739669791813,0.04453663,97614.0,97613.0,0.2662924]
[1739669792214,0.07603663,97614.0,97613.0,0.2662924]
[1739669792914,0.07703663,97614.0,97613.0,0.2662924]
[1739669793109,0.07703663,97614.0,97603.0,0.2663174]
[1739669793315,0.2663057,97609.0,97608.0,0.2663049]
[1739669794710,0.2662959,97612.0,97609.0,0.2663023]
[1739669794922,0.2662959,97612.0,97610.0,0.2662984]
[1739669795110,0.0304,97611.0,97610.0,0.2662984]
[1739669802527,0.2663088,97607.0,97606.0,0.18425933]
[1739669803726,0.2663088,97607.0,97606.0,0.18525933]
[1739669804122,0.2663088,97607.0,97606.0,0.18625933]
[1739669805718,0.2663088,97607.0,97606.0,0.18525933]
[1739669806021,0.2663088,97607.0,97606.0,0.18625933]
[1739669806925,0.0304,97611.0,97606.0,0.18625933]
[1739669807231,0.0304,97611.0,97610.0,0.2663006]
[1739669807920,0.0314,97611.0,97610.0,0.2663006]
[1739669822931,0.2663047,97609.0,97607.0,0.18425933]
[1739669825944,0.2663047,97609.0,97608.0,0.18425933]
[1739669829949,0.2663069,97608.0,97606.0,0.18425933]
[1739669831049,0.2663069,97608.0,97606.0,0.18525933]
[1739669831346,0.2663069,97608.0,97606.0,0.18625933]
[1739669839047,0.2663069,97608.0,97606.0,0.002]
[1739669842649,0.15331793,97607.0,97606.0,0.002]
[1739669844056,0.41962663,97607.0,97606.0,0.002]
[1739669846155,0.2663087,97607.0,97606.0,0.002]
[1739669849958,0.41962663,97607.0,97606.0,0.002]
[1739669853850,0.2663087,97607.0,97606.0,0.002]
[1739669857863,0.31612395,97607.0,97606.0,0.002]
[1739669860671,0.2663087,97607.0,97606.0,0.002]
[1739669867266,0.31612258,97607.0,97606.0,0.002]
[1739669913713,0.04981388,97607.0,97606.0,0.002]
[1739669914013,0.04981388,97607.0,97606.0,0.0335]
[1739669917409,0.04981388,97609.0,97606.0,0.0335]
[1739669917609,0.04981388,97609.0,97607.0,0.2663088]
[1739669920410,0.04981388,97609.0,97608.0,0.031]
[1739669922508,0.1533774,97609.0,97608.0,0.297306]
[1739669924808,0.1533774,97609.0,97608.0,0.266306]
[1739669925001,0.4196807,97609.0,97608.0,0.266306]
[1739669926111,0.2663033,97609.0,97608.0,0.266306]
[1739669926616,0.2663033,97609.0,97608.0,0.627106]
[1739669930508,0.31611718,97609.0,97608.0,0.627106]
[1739669934714,0.2663033,97609.0,97608.0,0.627106]
[1739669936226,0.15334456,97610.0,97609.0,0.2663034]
[1739669942124,0.0333,97614.0,97613.0,0.2662924]
[1739669943225,0.0343,97614.0,97613.0,0.2662924]
[1739669943424,0.0363,97614.0,97613.0,0.2662924]
[1739669976259,0.0363,97614.0,97613.0,0.51168656]
[1739669979550,0.0363,97614.0,97613.0,0.2662924]
[1739669983858,0.0363,97614.0,97613.0,0.2977924]
[1739669984058,0.0363,97614.0,97613.0,0.3283924]
[1739669984258,0.0363,97614.0,97613.0,0.51267791]
[1739669989478,0.0301,97619.0,97618.0,0.2662789]
[1739669989670,0.0301,97619.0,97618.0,0.6270789]
[1739669990371,0.0301,97619.0,97618.0,0.63723834]
[1739669990864,0.0361,97619.0,97618.0,0.63723834]
[1739669992472,0.0361,97619.0,97618.0,0.6270789]
[1739669995568,0.0361,97619.0,97618.0,0.2662789]
[1739669995871,0.0361,97619.0,97618.0,0.6270789]
[1739669996967,0.0361,97619.0,97618.0,0.2662789]
[1739669997179,0.0361,97619.0,97618.0,0.6270789]
[1739669998674,0.0361,97619.0,97618.0,0.2662789]
[1739669998992,0.0361,97619.0,97618.0,0.6270789]
[1739669999971,0.0361,97619.0,97618.0,0.81136663]
[1739670004080,0.0361,97619.0,97618.0,0.6270789]
[1739670018988,0.0361,97619.0,97612.0,0.24539416]
[1739670019177,0.0361,97619.0,97599.0,0.3608]
[1739670019178,0.2663034,97609.0,97608.0,0.24539416]
[1739670020478,0.2663034,97609.0,97608.0,0.24639416]
[1739670020690,0.2663034,97609.0,97608.0,0.14659416]
[1739670024490,0.31611779,97609.0,97608.0,0.001]
[1739670027688,0.2663034,97609.0,97608.0,0.001]
[1739670035493,0.3608,97613.0,97611.0,0.2662969]
[1739670035694,0.2662896,97615.0,97612.0,0.0628]
[1739670035993,0.2662912,97614.0,97612.0,0.0628]
[1739670036196,0.2662912,97614.0,97613.0,0.0332]
[1739670037295,0.2672912,97614.0,97613.0,0.0332]
[1739670037496,0.2682912,97614.0,97613.0,0.0332]
[1739670042299,0.266298,97611.0,97607.0,0.2663087]
[1739670042499,0.266298,97611.0,97608.0,0.0633]
[1739670043795,0.266302,97610.0,97608.0,0.0633]
[1739670044903,0.266302,97610.0,97608.0,0.329604]
[1739670046200,0.2662877,97615.0,97614.0,0.2662898]
[1739670046501,0.266274,97620.0,97617.0,0.2662815]
[1739670046701,0.266274,97620.0,97618.0,0.0919]
[1739670047699,0.1550537,97619.0,97618.0,0.0919]
[1739670048005,0.18606674,97619.0,97618.0,0.0919]
[1739670048202,0.18406674,97619.0,97618.0,0.0919]
[1739670048505,0.18606674,97619.0,97618.0,0.0919]
[1739670049406,0.18906674,97619.0,97618.0,0.0919]
[1739670052109,0.23887294,97619.0,97618.0,0.0919]
[1739670052810,0.2662789,97618.0,97617.0,0.20447349]
[1739670054311,0.2682789,97618.0,97617.0,0.20447349]
[1739670054705,0.2712789,97618.0,97617.0,0.20447349]
[1739670055200,0.005,97618.0,97617.0,0.20447349]
[1739670069019,0.05480542,97618.0,97617.0,0.20447349]
[1739670074516,0.05480542,97618.0,97615.0,0.3608]
[1739670074719,0.2662815,97617.0,97615.0,0.3608]
[1739670075109,0.2985843,97616.0,97615.0,0.3608]
[1739670076517,0.3005843,97616.0,97615.0,0.3608]
[1739670076918,0.3025843,97616.0,97615.0,0.3608]
[1739670077516,0.0363,97616.0,97614.0,0.3608]
[1739670077717,0.266287,97615.0,97614.0,0.3608]
[1739670079016,0.001,97615.0,97603.0,0.01135772]
[1739670079221,0.266317,97604.0,97603.0,0.01135772]
[1739670079710,0.266317,97604.0,97603.0,0.00094477]
[1739670080318,0.266317,97604.0,97603.0,0.01315517]
[1739670080622,0.266317,97604.0,97603.0,0.01515517]
[1739670082219,0.266317,97604.0,97603.0,0.00494477]
[1739670083835,0.266317,97604.0,97603.0,0.01500013]
[1739670084035,0.266317,97604.0,97603.0,0.28131983]
[1739670086023,0.0307,97608.0,97607.0,0.2663088]
[1739670087240,0.0307,97608.0,97607.0,0.2673088]
[1739670088140,0.0307,97608.0,97607.0,0.2683088]
[1739670090240,0.0307,97608.0,97607.0,0.6291088]
[1739670113463,0.15352412,97609.0,97607.0,0.6291088]
[1739670113863,0.15352412,97609.0,97608.0,0.0638]
[1739670114262,0.0307,97612.0,97608.0,0.0638]
[1739670114575,0.0307,97612.0,97611.0,0.2662979]
[1739670116467,0.0317,97612.0,97611.0,0.2662979]
[1739670123771,0.001,97612.0,97611.0,0.2662979]
[1739670132881,0.0312,97612.0,97611.0,0.2662979]
[1739670134584,0.0312,97612.0,97611.0,0.6270979]
[1739670152579,0.0312,97612.0,97611.0,0.2662979]
[1739670160191,0.0322,97612.0,97611.0,0.2662979]
[1739670162495,0.0312,97612.0,97611.0,0.2662979]
[1739670162697,0.0322,97612.0,97611.0,0.2662979]
[1739670164185,0.0312,97612.0,97611.0,0.2662979]
[1739670164389,0.0322,97612.0,97611.0,0.6270979]
[1739670169401,0.0312,97612.0,97611.0,0.6270979]
[1739670169603,0.0322,97612.0,97611.0,0.6270979]
[1739670170291,0.2984952,97612.0,97611.0,0.6270979]
[1739670171399,0.2984952,97612.0,97611.0,0.2662979]
[1739670171699,0.2984952,97612.0,97611.0,0.6270979]
[1739670173595,0.2974952,97612.0,97611.0,0.6270979]
[1739670173792,0.2984952,97612.0,97611.0,0.6270979]
[1739670176617,0.2974952,97612.0,97611.0,0.6270979]
[1739670176821,0.2984952,97612.0,97611.0,0.6270979]
[1739670181632,0.2984952,97612.0,97611.0,0.2662979]
[1739670189742,0.2682952,97612.0,97611.0,0.2662979]
[1739670190225,0.002,97612.0,97611.0,0.2662979]
[1739670190933,0.15352412,97617.0,97610.0,0.0317]
[1739670191128,0.18406674,97622.0,97610.0,0.0317]
[1739670191331,0.18406674,97622.0,97621.0,0.6270707]
[1739670192526,0.18406674,97622.0,97621.0,0.63736326]
[1739670193032,0.19306674,97622.0,97621.0,0.63736326]
[1739670194635,0.19206674,97622.0,97621.0,0.63736326]
[1739670195627,0.008,97622.0,97621.0,0.63736326]
[1739670198539,0.008,97622.0,97621.0,0.27656326]
[1739670198751,0.008,97622.0,97621.0,0.63736326]
[1739670202947,0.008,97622.0,97621.0,0.27656326]
[1739670203148,0.008,97622.0,97621.0,0.63736326]
[1739670204245,0.008,97622.0,97621.0,0.6270707]
[1739670205547,0.01819098,97622.0,97621.0,0.6270707]
[1739670207747,0.008,97622.0,97621.0,0.6270707]
[1739670210454,0.01821204,97622.0,97621.0,0.6270707]
[1739670210746,0.01821204,97622.0,97621.0,0.2662707]
[1739670210952,0.01821204,97622.0,97621.0,0.6270707]
[1739670215764,0.01821204,97622.0,97621.0,0.2662707]
[1739670217565,0.28447994,97622.0,97621.0,0.2662707]
[1739670217863,0.2662788,97618.0,97617.0,0.2662802]
[1739670219154,0.2712788,97618.0,97617.0,0.2662802]
[1739670223166,0.2712788,97618.0,97617.0,0.6270802]
[1739670232265,0.005,97618.0,97617.0,0.6270802]
[1739670242168,0.15367464,97628.0,97627.0,0.2662543]
[1739670242370,0.18406674,97634.0,97633.0,0.2662379]
[1739670243870,0.1575309,97634.0,97633.0,0.2672379]
[1739670244580,0.1575309,97634.0,97633.0,0.27775003]
[1739670244878,0.1615309,97634.0,97633.0,0.27875003]
[1739670248270,0.008,97634.0,97633.0,0.27875003]
[1739670269181,0.008,97634.0,97633.0,0.52420708]
[1739670272998,0.008,97634.0,97633.0,0.27875003]
[1739670277698,0.008,97634.0,97633.0,0.4629046]
[1739670281105,0.008,97634.0,97633.0,0.27875003]
[1739670286209,0.004,97634.0,97633.0,0.27775003]
[1739670286708,0.007,97634.0,97633.0,0.27875003]
[1739670296515,0.007,97634.0,97633.0,0.57809949]
[1739670302723,0.007,97634.0,97633.0,1.29969949]
[1739670303422,0.007,97634.0,97633.0,1.00035003]
[1739670307626,0.007,97634.0,97633.0,1.24607864]
[1739670312127,0.007,97634.0,97633.0,1.00035003]
[1739670317535,0.007,97634.0,97633.0,0.63955003]
[1739670320626,0.007,97634.0,97633.0,0.27875003]
[1739670320829,0.007,97634.0,97633.0,0.63955003]
[1739670321331,0.007,97634.0,97633.0,0.27875003]
[1739670321531,0.007,97634.0,97633.0,0.63955003]
[1739670325524,0.007,97634.0,97633.0,0.63855003]
[1739670337641,0.007,97634.0,97633.0,0.94560675]
[1739670341444,0.007,97634.0,97633.0,0.63855003]
[1739670348854,0.007,97634.0,97633.0,0.93714024]
[1739670361774,0.039,97634.0,97633.0,0.93714024]
[1739670365372,0.039,97634.0,97633.0,0.63855003]
[1739670366577,0.039,97634.0,97633.0,0.27775003]
[1739670366777,0.039,97634.0,97633.0,0.63855003]
[1739670368873,0.007,97634.0,97633.0,0.63855003]
[1739670369072,0.00015368,97643.0,97641.0,0.2662162]
[1739670369073,0.0325,97642.0,97641.0,0.2662162]
[1739670369271,0.15358867,97648.0,97647.0,0.2661998]
[1739670369469,0.15358867,97648.0,97647.0,0.6269998]
[1739670369683,7e-08,97648.0,97647.0,0.8480998]
[1739670371575,7e-08,97648.0,97647.0,0.8490998]
[1739670372075,7e-08,97648.0,97647.0,0.8480998]
[1739670373575,0.0326,97653.0,97650.0,0.2661892]
[1739670374983,0.0326,97653.0,97650.0,0.2671892]
[1739670375581,0.0326,97653.0,97651.0,0.266188]
[1739670376583,0.0326,97653.0,97651.0,0.267188]
[1739670377289,0.0326,97653.0,97651.0,0.27746738]
[1739670387796,0.0326,97653.0,97652.0,0.183789]
[1739670389203,0.0326,97653.0,97652.0,0.184789]
[1739670391906,0.0326,97653.0,97652.0,0.4509752]
[1739670394108,0.0326,97653.0,97652.0,0.2671862]
[1739670398611,0.0326,97653.0,97652.0,0.4509752]
[1739670403015,0.0326,97653.0,97652.0,0.2671862]
[1739670406411,0.0326,97653.0,97652.0,0.57445205]
[1739670409614,0.0326,97653.0,97652.0,0.87971789]
[1739670413524,0.0326,97653.0,97652.0,0.57445205]
[1739670417324,0.0326,97653.0,97652.0,0.2671862]
[1739670419718,0.0326,97653.0,97652.0,0.6279862]
[1739670423517,0.0326,97653.0,97652.0,0.2671862]
[1739670423720,0.0326,97653.0,97652.0,0.6279862]
[1739670426719,0.0326,97653.0,97652.0,0.6610862]
[1739670427830,0.0322,97656.0,97655.0,0.266178]
[1739670429031,0.0322,97656.0,97655.0,0.267178]
[1739670429227,0.0322,97656.0,97655.0,0.268178]
[1739670431828,0.0322,97656.0,97655.0,0.628978]
[1739670432724,0.0322,97656.0,97655.0,0.87464318]
[1739670435936,0.0322,97656.0,97655.0,0.51384318]
[1739670436231,0.0322,97656.0,97655.0,0.87464318]
[1739670436439,0.0322,97656.0,97655.0,0.628978]
[1739670439331,0.0322,97656.0,97655.0,0.3628]
[1739670440335,0.2661944,97649.0,97648.0,0.30726585]
[1739670440934,0.2661998,97647.0,97646.0,0.36868743]
[1739670441542,0.2990998,97647.0,97646.0,0.36868743]
[1739670443035,0.2990998,97647.0,97646.0,0.72948743]
[1739670443340,0.0329,97647.0,97646.0,0.72948743]
[1739670444537,0.0329,97647.0,97646.0,0.3609536]
[1739670444839,0.0329,97647.0,97646.0,0.0001536]
[1739670445029,0.2662326,97635.0,97627.0,0.72985383]
[1739670445740,0.3313326,97635.0,97627.0,0.72985383]
[1739670445942,0.3625326,97635.0,97627.0,0.72985383]
[1739670447546,0.3645326,97635.0,97627.0,0.72985383]
[1739670448740,0.2662407,97632.0,97627.0,0.36132]
[1739670448942,0.2662407,97632.0,97627.0,0.3608]
[1739670450045,0.2662407,97632.0,97625.0,0.0001536]
[1739670450738,0.2662407,97632.0,97629.0,0.2662481]
[1739670451043,0.2662407,97632.0,97630.0,0.0311]
[1739670453348,0.2662407,97632.0,97630.0,0.2973458]
[1739670453648,0.0963,97635.0,97634.0,0.2662353]
[1739670454637,0.0963,97635.0,97634.0,0.6270353]
[1739670454839,0.0973,97635.0,97634.0,0.6270353]
[1739670455148,0.0983,97635.0,97634.0,0.6270353]
[1739670458743,0.002,97635.0,97634.0,0.6270353]
[1739670494964,0.002,97635.0,97634.0,0.2662353]
[1739670495177,0.002,97635.0,97634.0,0.6270353]
[1739670500880,0.002,97635.0,97634.0,0.2662353]
[1739670501076,0.002,97635.0,97634.0,0.6270353]
[1739670523203,0.002,97635.0,97634.0,0.8726204]
[1739670530914,0.002,97635.0,97634.0,0.6270353]
[1739670534318,0.002,97635.0,97634.0,0.2662353]
[1739670534519,0.002,97635.0,97634.0,0.6270353]
[1739670541821,0.002,97635.0,97634.0,0.93392262]
[1739670545525,0.002,97635.0,97634.0,0.6270353]
[1739670554025,0.002,97635.0,97634.0,0.3608]
[1739670554217,0.0337,97635.0,97633.0,0.266238]
[1739670558730,0.0337,97635.0,97634.0,0.3608]
[1739670558935,0.0337,97635.0,97634.0,0.3914]
[1739670569725,0.002,97635.0,97634.0,0.3914]
[1739670569930,0.002,97635.0,97634.0,0.4231]
[1739670571738,0.002,97635.0,97634.0,0.66884501]
[1739670575540,0.002,97635.0,97634.0,0.4231]
[1739670580332,0.002,97635.0,97634.0,0.7839]
[1739670581833,0.0945,97649.0,97634.0,0.7839]
[1739670581834,0.0623,97649.0,97634.0,0.7839]
[1739670582030,0.0623,97649.0,97648.0,0.6269971]
[1739670583240,0.0324,97654.0,97653.0,0.2661834]
[1739670584452,0.0324,97654.0,97653.0,0.2671834]
[1739670600047,0.0324,97654.0,97653.0,0.6279834]
[1739670601250,0.0653,97656.0,97655.0,0.266178]
[1739670602445,0.033,97656.0,97655.0,0.267178]
[1739670602649,1e-08,97657.0,97655.0,0.267178]
[1739670603553,1e-08,97657.0,97655.0,0.268178]
[1739670603949,1e-08,97657.0,97655.0,0.267178]
[1739670604151,1e-08,97657.0,97655.0,0.268178]
[1739670614563,1e-08,97657.0,97655.0,0.51349775]
[1739670616277,1e-08,97657.0,97655.0,0.24731975]
[1739670616579,1e-08,97657.0,97656.0,0.2661752]
[1739670617874,1e-08,97657.0,97656.0,0.2681752]
[1739670621379,1e-08,97657.0,97656.0,0.9897752]
[1739670622481,1e-08,97657.0,97656.0,0.2681752]
[1739670622784,1e-08,97657.0,97656.0,0.9897752]
[1739670636483,1e-08,97657.0,97656.0,1.27710889]
[1739670673921,1e-08,97657.0,97656.0,0.55550889]
[1739670674121,1e-08,97657.0,97656.0,1.27710889]
[1739670676723,1e-08,97657.0,97656.0,0.55550889]
[1739670677023,1e-08,97657.0,97656.0,1.27710889]
[1739670678713,1e-08,97657.0,97656.0,0.55550889]
[1739670679031,1e-08,97657.0,97656.0,1.27710889]
[1739670679211,1e-08,97657.0,97656.0,1.30710889]
[1739670680520,1e-08,97657.0,97656.0,0.58550889]
[1739670680727,1e-08,97657.0,97656.0,1.52820889]
[1739670681828,0.0321,97676.0,97656.0,1.32857739]
[1739670682020,0.0321,97676.0,97675.0,0.6269235]
[1739670683132,0.0321,97676.0,97675.0,0.63797076]
[1739670684326,0.0321,97676.0,97675.0,0.63897076]
[1739670684629,0.1535878,97679.0,97677.0,0.266118]
[1739670684824,0.0307,97678.0,97677.0,0.266118]
[1739670685028,0.0621,97678.0,97677.0,0.266118]
[1739670685629,0.0621,97678.0,97677.0,0.267118]
[1739670686030,0.0621,97678.0,97677.0,0.268118]
[1739670699951,0.0621,97678.0,97677.0,0.989718]
[1739670708544,0.0307,97678.0,97677.0,1.23492351]
[1739670713066,0.0309,97683.0,97682.0,0.2661045]
[1739670714263,0.0309,97683.0,97682.0,0.2671045]
[1739670714661,0.0309,97683.0,97682.0,0.2681045]
[1739670717864,0.0319,97684.0,97682.0,0.2681045]
[1739670718264,0.0319,97684.0,97683.0,0.0321]
[1739670720665,0.0319,97684.0,97683.0,0.0331]
[1739670721368,0.0319,97684.0,97683.0,0.0341]
[1739670721766,0.0319,97684.0,97683.0,0.27963013]
[1739670725261,0.0001536,97685.0,97684.0,0.266099]
[1739670725467,0.0001536,97685.0,97684.0,0.297999]
[1739670726280,0.0001536,97685.0,97684.0,0.329299]
[1739670726974,0.0001536,97685.0,97684.0,0.331299]
[1739670732777,0.0001536,97685.0,97684.0,0.330299]
[1739670733172,0.0001536,97685.0,97684.0,0.329299]
[1739670734062,1e-08,97685.0,97684.0,0.329299]
[1739670737778,1e-08,97685.0,97684.0,1.050899]
[1739670739974,1e-08,97685.0,97684.0,1.35759661]
[1739670743574,1e-08,97685.0,97684.0,1.050899]
[1739670746684,1e-08,97685.0,97684.0,1.34660699]
[1739670749984,1e-08,97685.0,97684.0,1.28340699]
[1739670755189,1e-08,97685.0,97684.0,0.987699]
[1739670762391,1e-08,97685.0,97684.0,1.28487833]
[1739670777694,1e-08,97685.0,97684.0,1.30087518]
[1739670777903,1e-08,97685.0,97684.0,1.30087526]
[1739670779505,1e-08,97685.0,97684.0,1.30087523]
[1739670779711,0.0305,97698.0,97684.0,1.06037128]
[1739670779900,0.0305,97698.0,97695.0,0.3608]
[1739670780097,0.0305,97698.0,97696.0,0.04159195]
[1739670780290,0.0305,97698.0,97697.0,0.04159195]
[1739670781703,0.0305,97698.0,97697.0,0.0159969]
[1739670782304,0.0305,97698.0,97697.0,0.0169969]
[1739670782802,0.0305,97698.0,97697.0,0.0179969]
[1739670794905,0.0305,97698.0,97697.0,0.26343386]
[1739670798709,0.0305,97698.0,97697.0,0.0179969]
[1739670803224,0.0305,97698.0,97697.0,0.2840608]
[1739670806623,0.0305,97698.0,97697.0,0.2680639]
[1739670806820,0.0305,97698.0,97697.0,0.2840608]
[1739670814630,0.1,97700.0,97699.0,0.2660584]
[1739670814836,0.1,97700.0,97699.0,0.2820553]
[1739670815124,0.1,97700.0,97699.0,0.2820552]
[1739670815923,0.1,97700.0,97699.0,0.2830552]
[1739670816328,0.1,97700.0,97699.0,0.29327704]
[1739670817638,0.1,97700.0,97699.0,0.29427704]
[1739670822332,0.1,97700.0,97699.0,0.0179968]
[1739670822732,0.1319,97700.0,97699.0,0.0179968]
[1739670824731,0.1319,97700.0,97699.0,0.0179974]
[1739670831142,0.1319,97700.0,97699.0,0.01799726]
[1739670835535,0.1,97700.0,97699.0,0.01799726]
[1739670835947,0.1,97700.0,97699.0,0.05039726]
[1739670848052,0.3660557,97700.0,97699.0,0.05039719]
[1739670850756,0.3660557,97700.0,97699.0,0.01799719]
[1739670850947,0.3660557,97700.0,97693.0,0.24534724]
[1739670850948,0.1,97700.0,97693.0,0.24534724]
[1739670851152,0.6268721,97694.0,97693.0,0.24534724]
[1739670852056,0.6268721,97694.0,97693.0,0.002]
[1739670852656,0.6268721,97694.0,97693.0,0.001]
[1739670853048,0.6268721,97694.0,97690.0,0.3067606]
[1739670853049,0.2660802,97691.0,97690.0,0.3067606]
[1739670854256,0.2680802,97691.0,97690.0,0.33236143]
[1739670854858,0.2700802,97691.0,97690.0,0.33236143]
[1739670855258,0.2700802,97691.0,97690.0,0.02560083]
[1739670856167,0.004,97691.0,97688.0,0.00109739]
[1739670856363,0.0301,97690.0,97688.0,0.00109739]
[1739670856668,0.0329,97689.0,97688.0,0.00109739]
[1739670857468,0.2989857,97689.0,97688.0,0.00109739]
[1739670857867,0.2661075,97681.0,97680.0,0.24539014]
[1739670858869,0.2661075,97681.0,97679.0,0.031]
[1739670858870,0.6269075,97681.0,97679.0,0.031]
[1739670859172,0.03,97680.0,97679.0,0.031]
[1739670859375,0.12828,97680.0,97679.0,0.031]
[1739670860865,0.12928,97680.0,97679.0,0.031]
[1739670861276,0.12928,97680.0,97679.0,0.04126641]
[1739670861465,0.031,97680.0,97679.0,0.04126641]
[1739670861664,0.031,97680.0,97679.0,0.031]
[1739670861866,0.12924,97680.0,97679.0,0.031]
[1739670862275,0.13024,97680.0,97679.0,0.031]
[1739670862976,0.13024,97680.0,97679.0,0.0470014]
[1739670863181,0.032,97680.0,97679.0,0.0470014]
[1739670863676,0.04202163,97680.0,97679.0,0.0470014]
[1739670867778,0.10582163,97680.0,97679.0,0.0470014]
[1739670868172,0.37193183,97680.0,97679.0,0.0470014]
[1739670870371,0.37193183,97680.0,97679.0,0.07260335]
[1739670870775,0.37193183,97680.0,97679.0,0.07260364]
[1739670873373,0.37193183,97680.0,97679.0,0.0470014]
[1739670875575,0.34023183,97680.0,97679.0,0.0470014]
[1739670877373,0.34023183,97680.0,97679.0,0.07260364]
[1739670877575,0.30813183,97680.0,97679.0,0.07260364]
[1739670882389,0.30813183,97680.0,97679.0,0.0470014]
[1739670885375,0.30813183,97680.0,97679.0,0.07260439]
[1739670886194,0.30813183,97680.0,97679.0,0.031]
[1739670886377,0.30813183,97680.0,97679.0,0.04700187]
[1739670886783,0.30813183,97680.0,97679.0,0.04700197]
[1739670890392,0.30813183,97680.0,97679.0,0.04700157]
[1739670894211,0.30813183,97680.0,97679.0,0.04700198]
[1739670894714,0.66893183,97680.0,97679.0,0.04700198]
[1739670895618,0.30813183,97680.0,97679.0,0.04700198]
[1739670895921,0.66893183,97680.0,97679.0,0.04700198]
[1739670897297,0.30813183,97680.0,97679.0,0.04700198]
[1739670897598,0.66893183,97680.0,97679.0,0.04700198]
[1739670898192,0.66893183,97680.0,97679.0,0.04700185]
[1739670901803,0.66893183,97680.0,97679.0,0.04700177]
[1739670902101,0.66893183,97680.0,97679.0,0.031]
[1739670902303,0.66893183,97680.0,97679.0,0.04700158]
[1739670903508,0.66893183,97680.0,97679.0,0.04700185]
[1739670905706,0.66893183,97680.0,97679.0,0.04700174]
[1739670910114,0.66893183,97680.0,97679.0,0.0470018]
[1739670914509,0.66893183,97680.0,97679.0,0.031]
[1739670917612,0.66893183,97680.0,97679.0,0.04700225]
[1739670918306,0.66893183,97680.0,97679.0,0.04700215]
[1739670918514,0.66893183,97680.0,97679.0,0.031]
[1739670920314,0.82251963,97680.0,97679.0,0.031]
[1739670920507,0.91999963,97680.0,97679.0,0.031]
[1739670922509,0.91999963,97680.0,97679.0,0.04700191]
[1739670922709,0.82251963,97680.0,97679.0,0.04700191]
[1739670924919,0.66893183,97680.0,97679.0,0.04700191]
[1739670925214,0.66893183,97680.0,97679.0,0.04700214]
[1739670925405,0.30813183,97680.0,97679.0,0.04700214]
[1739670925610,0.66893183,97680.0,97679.0,0.04700214]
[1739670926721,0.66893183,97680.0,97679.0,0.031]
[1739670939820,0.82251963,97680.0,97679.0,0.031]
[1739670940021,0.91999963,97680.0,97679.0,0.031]
[1739670941728,0.91999963,97680.0,97679.0,0.04700212]
[1739670941929,0.82251963,97680.0,97679.0,0.04700212]
[1739670942615,0.46171963,97680.0,97679.0,0.04700212]
[1739670942820,0.82251963,97680.0,97679.0,0.04700212]
[1739670943833,0.66893183,97680.0,97679.0,0.031]
[1739670945634,0.66893183,97680.0,97679.0,0.04700201]
[1739670949632,0.66893183,97680.0,97679.0,0.031]
[1739670950336,0.6589102,97680.0,97679.0,0.2971129]
[1739670950533,0.3928,97680.0,97679.0,0.2971129]
[1739670950737,0.3928,97680.0,97679.0,0.3131145]
[1739670951235,0.3628,97680.0,97679.0,0.3131145]
[1739670951824,0.002,97680.0,97679.0,0.3131145]
[1739670952739,0.002,97680.0,97679.0,0.2971129]
[1739670954734,0.002,97680.0,97679.0,0.31311366]
[1739670955031,0.002,97680.0,97679.0,0.67391366]
[1739670955638,0.002,97680.0,97679.0,0.6579129]
[1739670968856,0.002,97680.0,97679.0,0.67391203]
[1739670969841,0.002,97680.0,97679.0,0.6579129]
[1739670979366,0.002,97680.0,97679.0,0.2971129]
[1739670979661,0.002,97680.0,97679.0,0.6579129]
[1739670988064,0.002,97680.0,97679.0,0.67391231]
[1739670989461,0.002,97680.0,97679.0,0.6739123]
[1739670999285,0.002,97680.0,97679.0,0.67391218]
[1739671000875,0.002,97680.0,97679.0,0.64291218]
[1739671001077,0.002,97680.0,97679.0,0.01599928]
[1739671001276,0.2661184,97677.0,97676.0,0.12315988]
[1739671001583,0.37114221,97677.0,97671.0,0.36826633]
[1739671001782,0.266132,97672.0,97671.0,0.36826633]
[1739671002179,0.3608,97672.0,97656.0,0.2967755]
[1739671002384,0.2661694,97659.0,97656.0,0.2967755]
[1739671002580,0.2661709,97658.0,97656.0,0.2967755]
[1739671003285,0.2661709,97658.0,97656.0,0.30723159]
[1739671003676,0.2661709,97658.0,97656.0,0.31123159]
[1739671004878,0.2661709,97658.0,97656.0,0.31723159]
[1739671005978,0.36144,97661.0,97656.0,0.05105609]
[1739671006186,0.3608,97661.0,97660.0,0.2661647]
[1739671008585,0.3608,97661.0,97660.0,0.2701647]
[1739671008983,0.3608,97661.0,97660.0,0.2741647]
[1739671009284,0.2661154,97679.0,97676.0,0.2661202]
[1739671009493,0.4197042,97678.0,97677.0,0.0967]
[1739671009679,0.1535878,97678.0,97677.0,0.0967]
[1739671011479,0.37159568,97682.0,97681.0,0.2661075]
[1739671011678,0.37095568,97682.0,97681.0,0.2661075]
[1739671012087,0.3608,97682.0,97681.0,0.2661075]
[1739671012486,0.2661028,97683.0,97681.0,0.2661075]
[1739671012684,0.3618,97682.0,97681.0,0.2661075]
[1739671013186,0.3628,97682.0,97681.0,0.2661075]
[1739671021794,0.002,97682.0,97681.0,0.2661075]
[1739671039511,0.002,97682.0,97681.0,0.44978281]
[1739671039702,0.0001536,97686.0,97685.0,0.2660968]
[1739671040608,0.0001536,97686.0,97685.0,0.6268968]
[1739671040911,0.0021536,97686.0,97685.0,0.6268968]
[1739671044110,0.0021536,97686.0,97685.0,0.6592968]
[1739671045513,0.0021536,97686.0,97685.0,0.2984968]
[1739671045708,0.0021536,97686.0,97685.0,0.6592968]
[1739671046806,1e-07,97686.0,97685.0,0.6592968]
[1739671047404,1e-07,97686.0,97685.0,0.67529336]
[1739671047813,0.8922,97705.0,97688.0,0.0665221]
[1739671048009,0.00064,97705.0,97699.0,0.2660587]
[1739671048314,0.0001536,97704.0,97699.0,0.28205526]
[1739671048515,0.0001536,97704.0,97699.0,0.34415526]
[1739671048703,0.0001536,97704.0,97699.0,0.37685526]